Cogmind - Beta 14 @@@ ROGUE MODE // 2024.09.10 @ 18:30:43 Player: Dull Result: Destroyed by G-73 Enforcer with Phase Gun Performance ------------- Evolutions (9) 4500 Regions Visited (15) 3000 Robots Destroyed (46) 230 Value Destroyed (1031) 1031 Prototype IDs (8) 160 Alien Tech Used (0) 0 Bonus (-107) -107 TOTAL SCORE: 8814 Bonus ------- Follower Combat Kills 47 Entered DSFs 500 Aligned with FarCom 300 Friendly Fire -954 Cogmind --------- Core Integrity 0/1600 Matter 109/300 Energy 98/100 System Corruption 7% Temperature Cool (9) Movement Core (50) Location -1/Command Parts ------- > --- POWER (2) -------- (None) > --- PROPULSION (8) --- (None) > --- UTILITY (12) ----- (None) > --- WEAPON (3) ------- (None) > --- INVENTORY (5) ---- Micro Antimatter Reactor Hardlight Generator Antimissile System Peak State ------------ > --- POWER ------------ Light Nuclear Core Micro Antimatter Reactor > --- PROPULSION ------- VTOL Module Field Propulsion Drive Impulse Thruster Impulse Thruster Array > --- UTILITY ---------- Medium Storage Unit Advanced Weight Redist. System Improved Terrain Scanner Seismic Detector Advanced Transmission Jammer Improved Phase Shifter Improved Phase Shifter Improved Phase Shifter Advanced System Shield Advanced Field Recycling Unit > --- WEAPON ----------- Lance > --- INVENTORY -------- Micro Antimatter Reactor Micro Antimatter Reactor Micro Antimatter Reactor Micro Antimatter Reactor Impulse Thruster Array Hardlight Generator Antimissile System Long-range Missile Launcher Ionic Axe [Rating: 103] Favorites ----------- Power Light Nuclear Core Engine Light Ion Engine Power Core Light Nuclear Core Reactor Micro Antimatter Reactor Propulsion VTOL Module Leg Improved Carbon-fiber Leg Wheel Compact Wheel Hover Unit Hover Unit Flight Unit VTOL Module Utility Large Storage Unit Device Heat Sink Storage Large Storage Unit Processor Corruption Screen Hackware Advanced System Shield Protection Powered Armor Weapon Lance Energy Gun Medium Laser Ballistic Gun Heavy Machine Gun Launcher YI-UF0's Doublenader Special Weapon Improved Remote Datajack Slashing Weapon Ionic Axe Piercing Weapon Lance Build | -11 -10 -10 -10 -9 -8 -7 -7 -6 -6 -5 -4 -3 -2 -1 -1 ------- Run | Yrd Mat Min Exi Min Mat Fac DSF Fac Ext Fac Fac Res Res Acc Com Slots Evolved 18 | . . . . . 4 2 . 2 . 2 2 2 2 2 . Power 1 | . . . . . . 1 . . . . . . . . . Propulsion 6 | . . . . . 2 . . . . . . 1 1 2 . Utility 10 | . . . . . 2 . . 2 . 2 2 1 1 . . Weapon 1 | . . . . . . 1 . . . . . . . . . Parts Attached 135 | 2 9 3 5 1 18 3 19 8 9 10 17 12 11 3 5 Power 21 | . 1 . . . 1 . 2 1 3 1 5 1 4 1 1 Engine 2 | . 1 . . . 1 . . . . . . . . . . Core 11 | . . . . . . . 2 1 3 1 4 . . . . Reactor 8 | . . . . . . . . . . . 1 1 4 1 1 Propulsion 42 | 2 6 . 3 . 5 2 1 2 3 1 7 3 6 1 . Treads . | . . . . . . . . . . . . . . . . Leg 14 | . 4 . 3 . 2 2 1 2 . . . . . . . Wheel 2 | 2 . . . . . . . . . . . . . . . Hover 2 | . 2 . . . . . . . . . . . . . . Flight 24 | . . . . . 3 . . . 3 1 7 3 6 1 . Utility 38 | . 2 2 2 . 3 . 9 2 2 4 3 8 . . 1 Device 21 | . 1 1 2 . 2 . 1 2 1 1 2 7 . . 1 Storage 4 | . 1 1 . . 1 . . . . . . 1 . . . Processor 4 | . . . . . . . . . 1 3 . . . . . Hackware 1 | . . . . . . . . . . . 1 . . . . Protection 8 | . . . . . . . 8 . . . . . . . . Artifact . | . . . . . . . . . . . . . . . . Weapon 34 | . . 1 . 1 9 1 7 3 1 4 2 . 1 1 3 Energy Gun 14 | . . . . 1 6 . 4 2 1 . . . . . . Energy Cannon . | . . . . . . . . . . . . . . . . Ballistic Gun 5 | . . . . . 3 . 2 . . . . . . . . Ballistic Cannon . | . . . . . . . . . . . . . . . . Launcher 4 | . . 1 . . . 1 1 . . . . . . . 1 Special Weapon 1 | . . . . . . . . . . 1 . . . . . Impact Weapon . | . . . . . . . . . . . . . . . . Slashing Weapon 2 | . . . . . . . . . . 1 . . 1 . . Piercing Weapon 8 | . . . . . . . . 1 . 2 2 . . 1 2 Special Melee Weapon . | . . . . . . . . . . . . . . . . Unidentified Prototypes 8 | . . 2 1 . 3 . . . . 1 . 1 . . . Parts Lost 53 | . . . . . 5 . 14 . 9 2 . . 15 5 3 Power 8 | . . . . . 1 . 2 . 1 . . . 3 1 . Propulsion 21 | . . . . . 1 . 4 . 5 1 . . 6 3 1 Utility 14 | . . . . . 2 . 5 . 3 . . . 4 . . Weapon 10 | . . . . . 1 . 3 . . 1 . . 2 1 2 Highest Loss Streak 12 | . . . . . 5 . 12 . 5 1 . . 8 4 2 To Critical Strikes 1 | . . . . . . . . . 1 . . . . . . Average Slot Usage (%) 54 | . 88 100 99 100 66 53 67 46 51 18 26 62 36 13 6 Engine 3 | . 14 14 14 14 7 . . . . . . . . . . Core 2 | . . . . . . . 6 5 9 4 3 4 . . . Reactor 1 | . . . . . . . . . . . . 1 7 2 . Leg 7 | . 10 28 28 28 1 30 25 11 3 . . . . . . Flight 7 | . . . . . 9 . . . 11 4 12 16 13 8 2 Device 8 | . 3 14 13 14 15 . 1 10 8 . 1 25 6 . . Storage 5 | . 14 14 14 14 16 . . . . . . 3 2 . . Energy Gun 8 | . 28 25 14 25 15 15 15 10 6 . . . . . . Launcher 1 | . . 2 14 2 . 7 . . . . . . . . . Piercing Weapon 2 | . . . . . . . . 5 5 . 4 4 1 2 2 Peak Build Rating 103 | 6 7 19 22 19 59 28 52 38 48 38 58 103 93 74 39 Average Rating 39 | 6 6 7 16 16 53 26 36 33 31 23 28 79 69 41 19 On Entrance 22 | 6 6 7 12 19 16 20 28 2 38 2 17 58 74 45 17 Naked Turns 130 | . . . . . 19 . 21 8 44 15 9 . 5 . 9 Heaviest Build 69 | 13 27 32 32 32 45 15 69 22 28 12 24 43 53 14 17 Greatest Support 72 | 26 26 20 30 30 50 72 72 32 32 13 39 43 55 60 15 Greatest Overweight (x) 10 | . 1 1 1 1 10 . 9 . 3 2 2 1 2 . 1 Average Overweight (x) . | . . 1 1 . . . . . . . . . . . . Largest Inventory Capacity 15 | 8 15 15 15 15 15 5 5 5 5 5 5 10 10 5 5 Average Capacity 8 | 8 9 15 15 15 14 5 5 5 5 5 5 9 8 5 5 Most Carried 15 | 6 8 13 15 15 15 5 5 5 5 5 5 10 10 5 5 Average Carried 7 | 6 7 8 13 15 12 2 4 3 4 4 4 7 7 4 4 Final Capacity 15 | 8 15 15 15 15 5 5 5 5 5 5 5 10 5 5 5 Final Carried 15 | 6 7 13 15 15 5 2 5 4 5 4 4 10 5 5 3 Class Distribution -------------------- 70% | Mutant 7% | Scout 7% | Scavenger-Mutant 6% | Ninja Dominant Class ---------------- Mutant | -10/Materials Mutant | -10/Mines Mutant | -10/Exiles Mutant | -9/Mines Mutant | -8/Materials Mutant | -7/Factory Tank | -7/DSF Mutant | -6/Factory Mutant | -6/Extension Mutant | -5/Factory Mutant | -4/Factory Ninja | -3/Research Mutant | -2/Research Mutant | -1/Access Mutant | -1/Command Resources | -11 -10 -10 -10 -9 -8 -7 -7 -6 -6 -5 -4 -3 -2 -1 -1 ----------- Run | Yrd Mat Min Exi Min Mat Fac DSF Fac Ext Fac Fac Res Res Acc Com Matter Collected 1320 | 220 20 117 . 125 261 . 155 . 111 2 236 42 19 12 . Remotely . | . . . . . . . . . . . . . . . . Salvage Created 1549 | . 203 99 . 41 519 . 293 . 100 . 236 58 . . . Parts 104 | . 16 4 . 2 44 . 12 . 5 . 13 8 . . . Haulers Intercepted 1 | . . . . . 1 . . . . . . . . . . Recyclers Shooed 2 | . 1 . . 1 . . . . . . . . . . . Parts Field Recycled 13 | . . . . . . . . . . . . 13 . . . Retrieved Matter 296 | . . . . . . . . . . . . 296 . . . Parts Self-Destructed . | . . . . . . . . . . . . . . . . Prevented . | . . . . . . . . . . . . . . . . Kills | -11 -10 -10 -10 -9 -8 -7 -7 -6 -6 -5 -4 -3 -2 -1 -1 ------- Run | Yrd Mat Min Exi Min Mat Fac DSF Fac Ext Fac Fac Res Res Acc Com Combat Hostiles Destroyed 32 | . 4 . . 3 11 . 6 . 4 . 4 . . . . Melee 8 | . . . . . . . . . 4 . 4 . . . . Guns 20 | . 4 . . 3 7 . 6 . . . . . . . . AOE 3 | . . . . . 3 . . . . . . . . . . Classes Destroyed 11 | . 5 . . . 4 . 1 . . . . 1 . . . Worker 4 | . . . . . 2 . . . . . 1 1 . . . Builder 3 | . 1 . . . 1 . . . . . . 1 . . . Tunneler 1 | . . . . . . . . . . . . 1 . . . Hauler 1 | . . . . . 1 . . . . . . . . . . Recycler 2 | . 1 . . . . . . . . . 1 . . . . Watcher 2 | . 1 . . . 1 . . . . . . . . . . Swarmer 22 | . 3 . . 3 6 . 2 . 4 . 4 . . . . Grunt 3 | . 1 . . . 2 . . . . . . . . . . Sentry 2 | . . . . . 2 . . . . . . . . . . Specialist 4 | . . . . . . . 4 . . . . . . . . Hunter 1 | . . . . . 1 . . . . . . . . . . Best Kill Streak 5 | . 3 . . 3 5 . 2 . 2 . 4 1 . . . Combat Bots Only 3 | . 3 . . 3 3 . 2 . 2 . 2 . . . . Max Kills in Single Turn 5 | . 1 1 . 1 5 . 1 . 1 . 1 1 . . . Gunslinging . | . . . . . . . . . . . . . . . . Exploded 3 | . . . . . 3 . . . . . . . . . . Melee 1 | . . . . . . . . . 1 . 1 . . . . Uniques/NPCs Destroyed 1 | . . 1 . . . . . . . . . . . . . YI-UF0 (-10/Mines) Combat | -11 -10 -10 -10 -9 -8 -7 -7 -6 -6 -5 -4 -3 -2 -1 -1 -------- Run | Yrd Mat Min Exi Min Mat Fac DSF Fac Ext Fac Fac Res Res Acc Com Hostile Shots Fired 856 | . 14 . . 4 158 . 239 . 204 8 24 3 32 88 82 Missed 341 | . 4 . . 1 75 . 68 . 83 5 7 3 15 45 35 Damage Taken 11621 | . 120 . . 22 1688 . 2820 . 1619 351 261 . 2345 1106 1289 Core 4589 | . 27 . . 6 261 . 626 . 813 149 246 . 845 568 1048 Absorbed by Shields . | . . . . . . . . . . . . . . . . Redirected to Shielding 29 | . . . . . . . 29 . . . . . . . . Ignored by Resistances 177 | . . . . . . . . . 177 . . . . . . Core Remaining (%) 61 | 100 . . . 86 52 . 10 . 4 85 78 100 41 . . Volleys Fired 101 | . 13 8 1 5 38 . 32 . 2 1 . . . . 1 Largest 3 | . 2 2 2 2 2 . 3 . 2 1 . . . . 1 Hottest 240 | . 90 90 120 90 110 . 240 . 170 7 . . . . 43 Shots Fired 193 | . 26 16 2 10 74 . 59 . 4 1 . . . . 1 Gun 190 | . 26 16 1 10 74 . 59 . 4 . . . . . . Cannon . | . . . . . . . . . . . . . . . . Launcher 2 | . . . 1 . . . . . . . . . . . 1 Special 1 | . . . . . . . . . . 1 . . . . . Kinetic 21 | . . . . . 4 . 17 . . . . . . . . Thermal 99 | . 26 16 1 10 . . 42 . 4 . . . . . . Explosive 2 | . . . 1 . . . . . . . . . . . 1 Electromagnetic 70 | . . . . . 70 . . . . . . . . . . Robot Hit Streak 17 | . 4 10 . 10 17 . 7 . 2 3 . . . . . Robot Miss Streak 5 | . 5 1 . . 3 . 5 . 2 . . . . . . Penetration Max . | . . . . . . . . . . . . . . . . Secondary Targets 1 | . . . . . . . 1 . . . . . . . . Max Gunslinging Chain 1 | . . . . . . . 1 . . . . . . . . Shots Hit Robots 154 | . 13 12 . 8 55 . 40 . 11 3 7 5 . . . Core Hits 73 | . 9 6 . 3 27 . 9 . 4 . 5 2 . . 8 Critical Kills . | . . . . . . . . . . . . . . . . Critical Parts Destroyed . | . . . . . . . . . . . . . . . . Critical Strikes 3 | . . 1 . 1 . . . . . . 1 . . . . Burn 2 | . . 1 . 1 . . . . . . . . . . . Impale 1 | . . . . . . . . . . . 1 . . . . Melee Attacks 172 | . . . . . . . . . 21 2 15 7 88 17 22 Impact . | . . . . . . . . . . . . . . . . Slashing 43 | . . . . . . . . . . 2 . . 41 . . Piercing 129 | . . . . . . . . . 21 . 15 7 47 17 22 Sneak Attacks 7 | . . . . . . . . . . . 2 5 . . . Combat Hostiles . | . . . . . . . . . . . . . . . . Follow-up Attacks . | . . . . . . . . . . . . . . . . Damage Inflicted 3666 | . 161 174 . 98 1102 . 865 . 268 124 388 399 . . 87 Guns 2095 | . 161 174 . 98 764 . 862 . 36 . . . . . . Cannons . | . . . . . . . . . . . . . . . . Explosions 425 | . . . . . 338 . . . . . . . . . 87 Melee 1092 | . . . . . . . . . 232 90 371 399 . . . Ramming 54 | . . . . . . . 3 . . 34 17 . . . . Kinetic 405 | . . . . . 81 . 324 . . . . . . . . Thermal 1345 | . 161 174 . 98 338 . 538 . 36 . . . . . . Explosive 87 | . . . . . . . . . . . . . . . 87 Electromagnetic 683 | . . . . . 683 . . . . . . . . . . Impact . | . . . . . . . . . . . . . . . . Slashing 90 | . . . . . . . . . . 90 . . . . . Piercing 1002 | . . . . . . . . . 232 . 371 399 . . . Highest Corruption 37 | . . . . . . . . 1 1 2 2 . 37 4 7 Average Corruption 9 | . . . . . . . . 1 1 1 2 . 33 4 4 Corruption Purged . | . . . . . . . . . . . . . . . . Corruption Blocked . | . . . . . . . . . . . . . . . . Effects 52 | . . . . . . . . 2 7 2 1 . 33 1 6 Message Errors 6 | . . . . . . . . . 1 . . . 2 1 2 Matter Fused 12 | . . . . . . . . 2 3 1 . . 5 . 1 Heat Flow Errors 6 | . . . . . . . . . . . . . 6 . . Energy Discharges 5 | . . . . . . . . . 1 . . . 3 . 1 Data Loss (minor) 7 | . . . . . . . . . . . 1 . 4 . 2 Data Loss (major) 3 | . . . . . . . . . 2 1 . . . . . Alerts 2 | . . . . . . . . . . . . . 2 . . Misdirections 11 | . . . . . . . . . . . . . 11 . . Overload Shots . | . . . . . . . . . . . . . . . . Overflow Damage 218 | . . . . . 29 . . . 22 12 59 96 . . . Projectiles . | . . . . . . . . . . . . . . . . Explosions 29 | . . . . . 29 . . . . . . . . . . Melee 189 | . . . . . . . . . 22 12 59 96 . . . Knockbacks . | . . . . . . . . . . . . . . . . Impact . | . . . . . . . . . . . . . . . . Kinetic . | . . . . . . . . . . . . . . . . Secondary . | . . . . . . . . . . . . . . . . Self-Inflicted Damage 279 | . . . . . 206 . 1 . . 17 8 . . . 47 Shots 5 | . . . . . 4 . . . . . . . . . 1 Rammed 9 | . . . . . 1 . 1 . . 6 1 . . . . Targets Rammed 9 | . . . . . 1 . 1 . . 6 1 . . . . Kicked . | . . . . . . . . . . . . . . . . Crushed . | . . . . . . . . . . . . . . . . Highest Temperature 504 | . 102 . 30 . 157 . 504 . 162 . . 12 254 . 14 Average Temperature 96 | . 40 . 15 . 58 . 199 . 81 . . 6 117 . 12 Received Heat Transfer 1176 | . 12 . . . 405 . 459 . 120 . . . 36 . 144 Effects 2 | . . . . . . . 2 . . . . . . . . Shutdowns 1 | . . . . . . . 1 . . . . . . . . Damage (minor) 1 | . . . . . . . 1 . . . . . . . . Siege Activations . | . . . . . . . . . . . . . . . . Robots Corrupted 1 | . . . . . 1 . . . . . . . . . . Combat Hostiles 1 | . . . . . 1 . . . . . . . . . . Parts Fried 5 | . . . . . 5 . . . . . . . . . . Impact Corruptions . | . . . . . . . . . . . . . . . . Robots Melted . | . . . . . . . . . . . . . . . . Combat Hostiles . | . . . . . . . . . . . . . . . . Parts Melted 1 | . . . . 1 . . . . . . . . . . . Heat Transferred 2789 | . 410 533 . 334 350 . 1062 . 100 . . . . . . Parts Sabotaged . | . . . . . . . . . . . . . . . . Parts Stolen . | . . . . . . . . . . . . . . . . Parts Stripped . | . . . . . . . . . . . . . . . . Power Chain Reactions 2 | . . . . . 2 . . . . . . . . . . Alert | -11 -10 -10 -10 -9 -8 -7 -7 -6 -6 -5 -4 -3 -2 -1 -1 ------- Run | Yrd Mat Min Exi Min Mat Fac DSF Fac Ext Fac Fac Res Res Acc Com Peak Influence 414 | . 149 70 . 53 414 124 216 81 142 81 164 123 135 217 297 Initial 138 | . . 57 . . 20 119 86 81 39 46 34 33 16 65 138 Average 106 | . 121 68 . 31 243 119 147 81 63 54 100 53 35 120 175 Maximum Alert Level 2 | . . . . . 2 . 1 . . . . . . 1 1 Low Security (%) 84 | 100 100 100 . 100 23 100 86 100 100 100 100 100 100 82 59 Level 1 15 | . . . . . 76 . 13 . . . . . . 17 40 Level 2 . | . . . . . . . . . . . . . . . . Level 3 . | . . . . . . . . . . . . . . . . Level 4 . | . . . . . . . . . . . . . . . . Level 5 . | . . . . . . . . . . . . . . . . High Security . | . . . . . . . . . . . . . . . . Max Security . | . . . . . . . . . . . . . . . . Squads Dispatched 16 | . . . . . 6 . 2 1 3 . . 1 1 2 . Investigation 4 | . . . . . . . . 1 2 . . . . 1 . Extermination 1 | . . . . . . . . . . . . . 1 . . Reinforcement 11 | . . . . . 6 . 2 . 1 . . 1 . 1 . Assault . | . . . . . . . . . . . . . . . . Garrison . | . . . . . . . . . . . . . . . . Intercept . | . . . . . . . . . . . . . . . . Searches Triggered . | . . . . . . . . . . . . . . . . Construction Impeded 1 | . . . . . 1 . . . . . . . . . . Haulers Reinforced . | . . . . . . . . . . . . . . . . Active Scanning Responses . | . . . . . . . . . . . . . . . . Cargo Convoy Interrupts . | . . . . . . . . . . . . . . . . Stealth | -11 -10 -10 -10 -9 -8 -7 -7 -6 -6 -5 -4 -3 -2 -1 -1 --------- Run | Yrd Mat Min Exi Min Mat Fac DSF Fac Ext Fac Fac Res Res Acc Com Distress Signals 9 | . 1 . . . 2 . . . 1 1 2 1 . 1 . Communications Jammed 13 | . . . . . . . . . . . 13 . . . . Distress Signals 13 | . . . . . . . . . . . 13 . . . . Times Spotted 160 | . 5 . . 3 38 . 16 . 22 3 12 6 12 12 31 Peak Tracking Total 50 | . 4 . . 2 8 . 6 . 10 2 4 3 7 8 50 Tactical Retreats 27 | . . . . . 5 . 3 . 3 1 3 3 2 4 3 Traps | -11 -10 -10 -10 -9 -8 -7 -7 -6 -6 -5 -4 -3 -2 -1 -1 ------- Run | Yrd Mat Min Exi Min Mat Fac DSF Fac Ext Fac Fac Res Res Acc Com Traps Triggered 9 | . 1 . . . 1 . . . 1 1 2 . 2 . 1 Indirectly . | . . . . . . . . . . . . . . . . Trap Hack Attempts . | . . . . . . . . . . . . . . . . Triggered . | . . . . . . . . . . . . . . . . Disarmed 6 | . 6 . . . . . . . . . . . . . . Reprogrammed . | . . . . . . . . . . . . . . . . Reused . | . . . . . . . . . . . . . . . . Traps Extracted . | . . . . . . . . . . . . . . . . Installed . | . . . . . . . . . . . . . . . . Triggered . | . . . . . . . . . . . . . . . . Machines | -11 -10 -10 -10 -9 -8 -7 -7 -6 -6 -5 -4 -3 -2 -1 -1 ---------- Run | Yrd Mat Min Exi Min Mat Fac DSF Fac Ext Fac Fac Res Res Acc Com Machines Disabled 4 | . . . . . 3 . 1 . . . . . . . . Max in Single Turn 2 | . . . . . 2 . 1 . . . . . . . . Machines Repaired . | . . . . . . . . . . . . . . . . Machines Dismantled . | . . . . . . . . . . . . . . . . Machines Sabotaged . | . . . . . . . . . . . . . . . . Overloaded Fab Kills . | . . . . . . . . . . . . . . . . Hacking | -11 -10 -10 -10 -9 -8 -7 -7 -6 -6 -5 -4 -3 -2 -1 -1 --------- Run | Yrd Mat Min Exi Min Mat Fac DSF Fac Ext Fac Fac Res Res Acc Com Machines Accessed 21 | . 3 1 . . 1 1 . 1 4 . 5 1 1 3 . Terminals 19 | . 3 1 . . 1 1 . . 4 . 4 1 1 3 . Fabricators 2 | . . . . . . . . 1 . . 1 . . . . Repair Stations . | . . . . . . . . . . . . . . . . Recycling Units . | . . . . . . . . . . . . . . . . Scanalyzers . | . . . . . . . . . . . . . . . . Garrison Access . | . . . . . . . . . . . . . . . . Total Hacks 41 | . 7 3 . . 4 1 . 2 7 . 7 1 2 7 . Successful 17 | . 4 2 . . 2 1 . . 3 . 2 . . 3 . Failed 24 | . 3 1 . . 2 . . 2 4 . 5 1 2 4 . Catastrophic 4 | . . 1 . . . . . 1 . . . 1 1 . . Database Lockouts . | . . . . . . . . . . . . . . . . Manual 25 | . 6 3 1 . 5 . . 2 . . 5 1 2 . . Terminals 38 | . 7 3 . . 4 1 . . 7 . 6 1 2 7 . Fabricators 3 | . . . . . . . . 2 . . 1 . . . . Repair Stations . | . . . . . . . . . . . . . . . . Recycling Units . | . . . . . . . . . . . . . . . . Scanalyzers . | . . . . . . . . . . . . . . . . Garrison Access . | . . . . . . . . . . . . . . . . Terminal Hacks 11 | . 2 1 . . . 1 . . 3 . 1 . . 3 . Record 1 | . . . . . . . . . 1 . . . . . . Open Door 5 | . . . . . . . . . 2 . . . . 3 . Open DSF 2 | . . . . . . 1 . . . . 1 . . . . Branch Access Points 2 | . 1 1 . . . . . . . . . . . . . Disarm Traps 1 | . 1 . . . . . . . . . . . . . . Fabricator Hacks 1 | . . . . . . . . . . . 1 . . . . Build 1 | . . . . . . . . . . . 1 . . . . Repair Station Hacks . | . . . . . . . . . . . . . . . . Recycling Unit Hacks . | . . . . . . . . . . . . . . . . Scanalyzer . | . . . . . . . . . . . . . . . . Garrison Access Hacks . | . . . . . . . . . . . . . . . . Unauthorized Hacks 5 | . 2 1 . . 2 . . . . . . . . . . Terminals 5 | . 2 1 . . 2 . . . . . . . . . . Assimilate 1 | . . . . . 1 . . . . . . . . . . Botnet 4 | . 2 1 . . 1 . . . . . . . . . . Fabricators . | . . . . . . . . . . . . . . . . Repair Stations . | . . . . . . . . . . . . . . . . Recycling Units . | . . . . . . . . . . . . . . . . Scanalyzers . | . . . . . . . . . . . . . . . . Garrison Access . | . . . . . . . . . . . . . . . . Data Cores Recovered . | . . . . . . . . . . . . . . . . Used . | . . . . . . . . . . . . . . . . Hacking Detections 13 | . 3 1 . . 1 . . 1 3 . 2 . 1 1 . Full Trace Events 4 | . 1 . . . . . . 1 1 . . . . 1 . Feedback Events 1 | . . . . . . . . 1 . . . . . . . Corruption 1 | . . . . . . . . 1 . . . . . . . Feedback Blocked . | . . . . . . . . . . . . . . . . Robot Schematics Acquired . | . . . . . . . . . . . . . . . . Robots Built . | . . . . . . . . . . . . . . . . Authchips . | . . . . . . . . . . . . . . . . Time . | . . . . . . . . . . . . . . . . Total Robot Build Rating . | . . . . . . . . . . . . . . . . Part Schematics Acquired . | . . . . . . . . . . . . . . . . Parts Built 1 | . . . . . . . . . . . 1 . . . . Authchips . | . . . . . . . . . . . . . . . . Time 128 | . . . . . . . . . . . 128 . . . . Total Part Build Rating 8 | . . . . . . . . . . . 8 . . . . Parts Repaired . | . . . . . . . . . . . . . . . . Time . | . . . . . . . . . . . . . . . . Parts Recycled . | . . . . . . . . . . . . . . . . Recycled Matter . | . . . . . . . . . . . . . . . . Retrieved Matter . | . . . . . . . . . . . . . . . . Retrieved Components . | . . . . . . . . . . . . . . . . Parts Scanalyzed . | . . . . . . . . . . . . . . . . Part Schematics Acquired . | . . . . . . . . . . . . . . . . Parts Damaged . | . . . . . . . . . . . . . . . . Bothacking | -11 -10 -10 -10 -9 -8 -7 -7 -6 -6 -5 -4 -3 -2 -1 -1 ------------ Run | Yrd Mat Min Exi Min Mat Fac DSF Fac Ext Fac Fac Res Res Acc Com Used RIF Installer . | . . . . . . . . . . . . . . . . Robots Hacked 1 | . . . . . . . . . . 1 . . . . . Non-combat 1 | . . . . . . . . . . 1 . . . . . Combat . | . . . . . . . . . . . . . . . . Robot Hacks Applied 1 | . . . . . . . . . . 1 . . . . . no_distress 1 | . . . . . . . . . . 1 . . . . . Relay Couplers Released . | . . . . . . . . . . . . . . . . Fabnet Peak Effective % . | . . . . . . . . . . . . . . . . Robots Rewired . | . . . . . . . . . . . . . . . . Allies Hacked . | . . . . . . . . . . . . . . . . Hacks Repelled . | . . . . . . . . . . . . . . . . Allies | -11 -10 -10 -10 -9 -8 -7 -7 -6 -6 -5 -4 -3 -2 -1 -1 -------- Run | Yrd Mat Min Exi Min Mat Fac DSF Fac Ext Fac Fac Res Res Acc Com Total Allies 6 | . . 4 . . . . . . 2 . . . . . . Largest Group 4 | . . 4 4 3 . . . . 2 . . . . . . Highest-Rated Group 71 | . . 71 71 40 . . . . 50 . . . . . . Highest-Rated Ally 31 | . . 31 31 16 . . . . 25 . . . . . . Total Orders . | . . . . . . . . . . . . . . . . Ally Attacks 22 | . . . . 12 . . . . 10 . . . . . . Total Damage 453 | . . . . 91 . . . . 362 . . . . . . Kills 3 | . . . . 2 . . . . 1 . . . . . . Allies Corrupted . | . . . . . . . . . . . . . . . . Allies Melted . | . . . . . . . . . . . . . . . . Intel | -11 -10 -10 -10 -9 -8 -7 -7 -6 -6 -5 -4 -3 -2 -1 -1 ------- Run | Yrd Mat Min Exi Min Mat Fac DSF Fac Ext Fac Fac Res Res Acc Com Robot Analysis Total . | . . . . . . . . . . . . . . . . Derelict Logs Recovered . | . . . . . . . . . . . . . . . . Drone Launches . | . . . . . . . . . . . . . . . . Drone Recoveries . | . . . . . . . . . . . . . . . . Exploration | -11 -10 -10 -10 -9 -8 -7 -7 -6 -6 -5 -4 -3 -2 -1 -1 ------------- Run | Yrd Mat Min Exi Min Mat Fac DSF Fac Ext Fac Fac Res Res Acc Com Turns Passed 5632 | 7 236 409 425 49 823 10 353 123 668 334 547 449 744 247 208 Spaces Moved 4943 | 5 169 186 217 25 453 6 133 111 545 557 448 701 631 523 233 Core 343 | . . . . . 36 . 28 15 94 44 89 . 9 . 28 Treads . | . . . . . . . . . . . . . . . . Legs 768 | . 49 186 217 25 6 6 105 96 78 . . . . . . Wheels 79 | 5 74 . . . . . . . . . . . . . . Hover 46 | . 46 . . . . . . . . . . . . . . Flight 3707 | . . . . . 411 . . . 373 513 359 701 622 523 205 Fastest Speed 26 | 90 56 190 190 120 37 120 50 50 29 40 26 32 32 31 40 Average Speed 66 | 90 99 190 190 128 52 120 112 97 90 43 52 37 43 35 44 Slowest Speed 550 | 90 190 190 190 190 550 120 500 105 275 150 150 125 150 40 120 Overloaded Moves . | . . . . . . . . . . . . . . . . Propulsion Burnouts . | . . . . . . . . . . . . . . . . Robots Hopped 13 | . . . . . 8 . . . 2 2 . . 1 . . Cave-ins Triggered 12 | . . . . . . . . . . . . . 8 1 3 Exploration Rate (%) 26 | 2 30 42 42 7 37 . 75 5 54 21 12 20 18 15 11 Regions Visited 15 Branch Regions 5 Pre-discovered Areas . | . . . . . . . . . . . . . . . . Known Exits Taken 2 | . 1 . . . . 1 . . . . . . . . . Unknown Exits Taken 12 | 1 . 1 1 1 1 . . 1 1 1 1 1 1 1 . Scrap Searched . | . . . . . . . . . . . . . . . . Spaces Dug 141 | . . . . . . . . . . . . . 88 14 39 Terrain Destroyed 181 | . . . 8 . 32 . . . . . . . 88 14 39 Melee 122 | . . . . . . . . . . . . . 88 14 20 Projectile . | . . . . . . . . . . . . . . . . AOE 59 | . . . 8 . 32 . . . . . . . . . 19 Terrain Rammed . | . . . . . . . . . . . . . . . . Walls Destroyed . | . . . . . . . . . . . . . . . . Machines Disabled . | . . . . . . . . . . . . . . . . Actions | -11 -10 -10 -10 -9 -8 -7 -7 -6 -6 -5 -4 -3 -2 -1 -1 --------- Run | Yrd Mat Min Exi Min Mat Fac DSF Fac Ext Fac Fac Res Res Acc Com Total 6823 | 6 212 225 229 31 964 10 278 123 682 645 736 878 964 548 292 Wait 1327 | . 10 21 . 1 417 . 79 . 96 55 240 144 230 5 29 Move 4893 | 4 168 185 216 24 436 5 132 110 540 552 447 700 622 521 231 Hop 13 | . . . . . 8 . . . 2 2 . . 1 . . Pick Up 71 | . 6 7 3 . 24 . 5 4 2 7 4 6 2 1 . Fast Attach 66 | . 1 . . . 4 . 15 4 8 5 11 11 4 2 1 Attach 43 | . 2 . 2 . 10 3 2 5 1 5 2 1 5 1 4 Detach 8 | . . . . . . . . . 2 2 1 . 1 . 2 Swap 30 | 2 6 3 3 1 4 . 5 . . . 4 . 2 . . Drop 81 | . 6 1 4 . 22 2 7 . 8 8 11 9 3 . . Fire 101 | . 13 8 1 5 38 . 32 . 2 1 . . . . 1 Melee 172 | . . . . . . . . . 21 2 15 7 88 17 22 Ram 9 | . . . . . 1 . 1 . . 6 1 . . . . Kick . | . . . . . . . . . . . . . . . . Crush . | . . . . . . . . . . . . . . . . Escape Stasis 9 | . . . . . . . . . . . . . 6 1 2 Rewire . | . . . . . . . . . . . . . . . . Trap . | . . . . . . . . . . . . . . . . Miscellaneous . | . . . . . . . . . . . . . . . . Route ------- -11/Scrapyard -10/Materials (discovered 2 exits: *Min x2) -10/Mines (discovered 2 exits: [*Mat] / *Exi) -10/Exiles -9/Mines -8/Materials -7/Factory -7/DSF -6/Factory -6/Extension (discovered 2 exits: *Fac / [*Cet]) -5/Factory -4/Factory -3/Research -2/Research -1/Access -1/Command History --------- Turn | Location | Event 4 | -11/Scrapyard | Discovered new exit (range 3) 8 | -11/Scrapyard | Entered Materials 61 | -10/Materials | Identified exit to Mines 244 | -10/Materials | Entered Mines 284 | -10/Mines | Assisted by bots powering up and referring to "LRC-V3" 303 | -10/Mines | Build established: Mutant 387 | -10/Mines | Discovered new exit (range 10) 492 | -10/Mines | YI-UF0 nonchalantly dropped a Grenade Launcher on the ground 505 | -10/Mines | Escorted by a lone wolf Derelict 571 | -10/Mines | Murdered YI-UF0 585 | -10/Mines | Found Prototype Launcher 587 | -10/Mines | Identified YI-UF0's Doublenader 594 | -10/Mines | Found Prototype Storage 595 | -10/Mines | Identified YI-UF0's Bottomless Matter Pit 621 | -10/Mines | Deemed a non-threat by the Exiles lab entrance 622 | -10/Mines | Discovered new exit (range 5) 653 | -10/Mines | Entered Exiles 653 | -10/Exiles | Accompanied by 4 allies 704 | -10/Exiles | Met 8R-AWN 738 | -10/Exiles | Met EX-HEX 789 | -10/Exiles | Met EX-BIN 816 | -10/Exiles | Aligned with FarCom system 818 | -10/Exiles | Given EX-Vault access code 862 | -10/Exiles | Opened EX-Vault 874 | -10/Exiles | Found Prototype Device 875 | -10/Exiles | Identified Trap Reconfigurator 896 | -10/Exiles | Found Prototype Flight Unit 935 | -10/Exiles | Warned to stay clear of 0b10 Research branches 1054 | -10/Exiles | Discovered new exit (range 14) 1078 | -10/Exiles | Left Exiles lab with Flying Fortress v7 1078 | -10/Exiles | Entered Mines 1078 | -9/Mines | Accompanied by 3 allies 1091 | -9/Mines | Discovered new exit (range 11) 1127 | -9/Mines | Entered Materials 1127 | -8/Materials | Evolved 4 slots: Propulsion x2, Utility x2 1131 | -8/Materials | Lost 3 allies 1133 | -8/Materials | Identified Flying Fortress v7 1907 | -8/Materials | Lost 5 parts (1p1n2u1w) 1945 | -8/Materials | Discovered new exit (range 10) 1950 | -8/Materials | Entered Factory 1950 | -7/Factory | Evolved 2 slots: Power x1, Weapon x1 1959 | -7/Factory | Identified exit to DSF 1960 | -7/Factory | Entered DSF 2026 | -7/DSF | Additional patrols routed to DSF 2028 | -7/DSF | Discovered new exit (range 13) 2090 | -7/DSF | Found Powered Armor 2093 | -7/DSF | Found Powered Armor 2132 | -7/DSF | Found Powered Armor 2135 | -7/DSF | Found Powered Armor 2286 | -7/DSF | Core integrity fell below 50% 2307 | -7/DSF | Core integrity fell below 20% 2313 | -7/DSF | Entered Factory 2313 | -6/Factory | Evolved 2 slots: Utility x2 2314 | -6/Factory | Lost 12 parts (2p4n4u2w) 2414 | -6/Factory | Discovered new exit (range 15) 2436 | -6/Factory | Entered Extension 2630 | -6/Extension | Lost 5 parts (1p2n2u) 2698 | -6/Extension | Rescued a captive Derelict 2699 | -6/Extension | Rescued a captive Derelict 2762 | -6/Extension | Rescued a captive Derelict 2762 | -6/Extension | Rescued a captive Derelict 3048 | -6/Extension | Spotted B-75 Beast 3054 | -6/Extension | Spotted B-75 Beast 3060 | -6/Extension | Core integrity fell below 50% 3071 | -6/Extension | Core integrity fell below 20% 3091 | -6/Extension | Lost 3 parts (2n1u) 3097 | -6/Extension | Discovered new exit (range 16) 3098 | -6/Extension | Discovered new exit (range 14) 3104 | -6/Extension | Entered Factory 3104 | -5/Factory | Evolved 2 slots: Utility x2 3432 | -5/Factory | Discovered new exit (range 5) 3438 | -5/Factory | Entered another Factory area 3438 | -4/Factory | Evolved 2 slots: Utility x2 3793 | -4/Factory | Fabricated Impulse Thruster Array (x1) 3955 | -4/Factory | Spotted B-86 Titan 3966 | -4/Factory | Discovered new exit (range 15) 3985 | -4/Factory | Entered Research 3985 | -3/Research | Evolved 2 slots: Propulsion x1, Utility x1 4227 | -3/Research | Build established: Ninja 4271 | -3/Research | Spotted B-86 Titan 4434 | -3/Research | Discovered new exit (range 2) 4434 | -3/Research | Entered another Research area 4434 | -2/Research | Evolved 2 slots: Propulsion x1, Utility x1 4608 | -2/Research | Build established: Scout 4683 | -2/Research | Crushed by falling debris 4752 | -2/Research | Crushed by falling debris 4788 | -2/Research | Crushed by falling debris 4789 | -2/Research | System corruption reached 10% 4800 | -2/Research | Crushed by falling debris 4808 | -2/Research | Crushed by falling debris 4808 | -2/Research | System corruption reached 30% 4813 | -2/Research | Crushed by falling debris 4844 | -2/Research | Lost 8 parts (1p3n3u1w) 4861 | -2/Research | Crushed by falling debris 4887 | -2/Research | Crushed by falling debris 4991 | -2/Research | Spotted B-90 Cyclops 5074 | -2/Research | Build established: Mutant 5157 | -2/Research | Core integrity fell below 50% 5170 | -2/Research | Discovered new exit (range 12) 5178 | -2/Research | Entered Access 5178 | -1/Access | Evolved 2 slots: Propulsion x2 5183 | -1/Access | Lost 4 parts (1p3n) 5259 | -1/Access | Spotted B-99 Colossus 5343 | -1/Access | Lost 4 parts (1p3n) 5411 | -1/Access | Crushed by falling debris 5422 | -1/Access | Discovered new exit (range 8) 5425 | -1/Access | Entered Command 5588 | -1/Command | Core integrity fell below 50% 5588 | -1/Command | Crushed by falling debris 5604 | -1/Command | Crushed by falling debris 5623 | -1/Command | Crushed by falling debris 5627 | -1/Command | Core integrity fell below 20% 5633 | -1/Command | Destroyed by G-73 Enforcer with Phase Gun Last Messages --------------- 05548_ Slug penetrates Wall. 05549_ Triggered Blade Trap. 05549_ Massive razor-sharp blades shoot up from within the floor. 05549_ Adv. Phase Shifter severed. 05560_ PTWTVEHOIJ IIZHTAWTC% H#NC34#Y|7Y|67 05563_ Field Propulsion Array destroyed. 05588_ The unstable cave ceiling collapses. 05588_ Crushed by falling debris. 05601_ System corrupted: Energy discharge (-27). 05604_ The unstable cave ceiling collapses. 05604_ Crushed by falling debris. 05622_ The unstable cave ceiling collapses. 05623_ Crushed by falling debris. 05623_ Force Lance destroyed. 05623_ System corrupted by crushing effect (+3). 05624_ W9SIGZOT>Q6GWX ZY5&: H1HFKEB>T 05625_ G-73 Enforcer springs to life. 05625_ Lrn. Missile Launcher destroyed. 05625_ G-73 Enforcer springs to life. 05626_ Critical hit (Burn: +37). Map ----- +----------------------------------------------------+ | ?????????????????????????????????????????????????? | | ?????????????????????????????????????????????????? | | ?????????????????????????????????????????????????? | | ?????????????????????????????????????????????????? | | ?????????????????????????????????????????????????? | | ?????????????????????????????????????????????????? | | ?????????????????????????????????????????????????? | | ?????????????????????????????????????????????????? | | ?????????????????????????????????????????????????? | | ?????????????????????????????????????????????????? | | ?????????????????????????????????????????????????? | | ?????????????????????????????????????????????????? | | ?????????????????????????????????????????????????? | | ???????????????????????????????????????? ???????? | | ???????????????????????????????????????? ???????? | | ???????????????????????????????????????? ???????? | | ???????????????????????????????????????# ??????"T | | ???????????????????????????????????w???# #????? | | ???????????????????????????????????????# #?????# | | ???????????????????????????????????????# #?????# | | ???????????????????????????????????????# #?????# | | ???????????????????????????????????????# #?????# | | ???????????????????????????????????????# #?????# | | ???????????????????????????????????????# #?????# | | ????????????????????????####???????????# #?????# | | ????????????????????gg??#@ #???????????# #?????# | | ????????????????????gg??# ###?????w???# #?????+ | | ????????????????????gg??# # ###???????# #?????# | | ????????????????????gg??# #??????## ##???## | | ?????????????????????g??# #??????# ##### | | ????????????????????g???#g #??????# T" | | ????????????????????gg??# g #??????# "" | | ????????????????????ggg#gggg #?????# ##### | | ???????????????????gggg#ggg ## ##????## ##???##+ | | ???????????????????gg??#gggg#?## #?????# #??????? | | ????????????????????gg?#gggg#?####?????# #??????? | | ?????????????????????g?#gggg#?##s#?????# #??????? | | ???????????????????????# ggg#?#s##???### ###????? | | ???????????????????????######?##s#???# #????? | | ??????????????????????????????# ###??# #????? | | ??????????????????????????????# # #??# #????? | | ??????????????????????????????## #??# #????? | | ???????????????????????????????## #### #????? | | ????????????????????????????????## ## #????? | | ?????????????????????????????????# ####/######### | | ?????????????????????????????????## # | | ??????????????????????????????????## "! | | ???????????????????????????????????### ] | | ?????????????????????????????????????# | | ?????????????????????????????????????# | +----------------------------------------------------+ Best States ------------- Heat Dissipation 53 Energy Generation 39 Energy Capacity 385 Matter Stores 473 Matter Capacity 1800 Sight Range 22 Terrain Scan Range 16 Terrain Scan Density 10 Jamming Range 16 Additional Mass Support 9 Corruption Block 8 Armor Coverage 1600 Resistance: KI 20 Utility Shielding 66 Weapon Shielding 66 Phase Shifting 15 Evasion (%) 77 Melee Accuracy 8 Particle Charging 15 Defensive Hacking 14 Item Schematics ----------------- None Robot Schematics ------------------ None Fabricated ------------ Impulse Thruster Array | x1 | -4/Factory | Preloaded Alien Tech Used ----------------- None Achievements -------------- Denied? Dodgeball, But With Guns Streaker Challenges ------------ None Game ------ Seed HeartHoverExtrapolator Manual? 0 Play Time 01:16:42 Cumulative 44.8 hours Start 2024.09.10 @ 17:15:20 End 2024.09.10 @ 18:30:43 Sessions 1 Manual Loads 0 Difficulty Rogue Special Mode None Game No. 62 Rogue 62 Adventurer 0 Explorer 0 Win Type - Total 0 Types 0/0/0/0/0/0/0/0/0 Lore% 11 Gallery% 42 Achievement% 33 Wizard Run 0 Options --------- Layout 0 ASCII 0 Keyboard 0 Movement Mouse Keybinds 1 Fullscreen 1 Font 18/TerminusBold Map View 76x50 Zoom Use 0% Tactical HUD 1 Map Filters NONE Filters NONE Steam 1 RUN: e2c74dc0-fdbf-429e-bb46-9413fb865882